[Event "Titled Tuesday Blitz January 17 Late 2023"]
[White "Vega Gutierrez, Sabrina"]
[Black "Flores Quillas, Diego Saul Rodri"]
[WhiteFideId "2219026"]
[BlackFideId "3822508"]
[WhiteElo "2377"]
[BlackElo "2359"]
[Result "0-1"]
[Round "07"]
[TimeControl "180+2"]
[Date "2023.01.17"]
[WhiteClock "0:00:02"]
[BlackClock "0:00:55"]

1. e4 {[%clk 0:03:00]}  c5 {[%clk 0:02:59]} 2. Nf3 {[%clk 0:03:00]}  d6 {[%clk 0:02:59]} 3. d4 {[%clk 0:03:01]}  cxd4 {[%clk 0:02:59]} 4. Qxd4 {[%clk 0:03:02]}  Nc6 {[%clk 0:02:58]} 5. Bb5 {[%clk 0:03:02]}  Bd7 {[%clk 0:02:58]} 6. Bxc6 {[%clk 0:03:03]}  Bxc6 {[%clk 0:02:59]} 7. Nc3 {[%clk 0:03:03]}  e5 {[%clk 0:02:41]} 8. Qd3 {[%clk 0:03:03]}  h6 {[%clk 0:02:41]} 9. O-O {[%clk 0:02:57]}  Nf6 {[%clk 0:02:42]} 10. Nd2 {[%clk 0:02:53]}  Be7 {[%clk 0:02:36]} 11. Nc4 {[%clk 0:02:49]}  O-O {[%clk 0:02:32]} 12. Rd1 {[%clk 0:02:47]}  Nxe4 {[%clk 0:02:06]} 13. Nxe4 {[%clk 0:02:43]}  d5 {[%clk 0:02:05]} 14. Bxh6 {[%clk 0:02:00]}  gxh6 {[%clk 0:01:48]} 15. Nxe5 {[%clk 0:01:52]}  Qc7 {[%clk 0:01:40]} 16. Qg3+ {[%clk 0:01:37]}  Kh7 {[%clk 0:01:38]} 17. Nxc6 {[%clk 0:01:23]}  Qxg3 {[%clk 0:01:37]} 18. Nxg3 {[%clk 0:01:22]}  bxc6 {[%clk 0:01:36]} 19. b3 {[%clk 0:00:44]}  f5 {[%clk 0:01:20]} 20. Re1 {[%clk 0:00:32]}  Bf6 {[%clk 0:01:19]} 21. Rad1 {[%clk 0:00:32]}  f4 {[%clk 0:01:19]} 22. Nf5 {[%clk 0:00:22]}  Rae8 {[%clk 0:01:16]} 23. Nd6 {[%clk 0:00:17]}  Rd8 {[%clk 0:01:12]} 24. Nb7 {[%clk 0:00:16]}  Rde8 {[%clk 0:01:11]} 25. Nc5 {[%clk 0:00:14]}  Bc3 {[%clk 0:01:10]} 26. Rxe8 {[%clk 0:00:12]}  Rxe8 {[%clk 0:01:10]} 27. Kf1 {[%clk 0:00:13]}  Kg6 {[%clk 0:01:10]} 28. Na4 {[%clk 0:00:07]}  Bb4 {[%clk 0:01:02]} 29. c3 {[%clk 0:00:07]}  Bd6 {[%clk 0:00:59]} 30. Re1 {[%clk 0:00:07]}  Rxe1+ {[%clk 0:00:58]} 31. Kxe1 {[%clk 0:00:08]}  f3 {[%clk 0:00:57]} 32. g3 {[%clk 0:00:08]}  Kf5 {[%clk 0:00:56]} 33. h3 {[%clk 0:00:03]}  Ke4 {[%clk 0:00:57]} 34. Kd2 {[%clk 0:00:03]}  Ba3 {[%clk 0:00:57]} 35. b4 {[%clk 0:00:02]}  d4 {[%clk 0:00:56]} 36. cxd4 {[%clk 0:00:02]}  Bxb4+ {[%clk 0:00:55]} 0-1


[Site "https://www.chess.com"]

[Event "Titled Tuesday Blitz January 17 Late 2023"]
[White "Leiva, Gianmarco"]
[Black "Sivakumar, Shaaketh"]
[WhiteFideId "3804399"]
[BlackFideId "30940176"]
[WhiteElo "2392"]
[BlackElo "2337"]
[Result "1-0"]
[Round "07"]
[TimeControl "180+2"]
[Date "2023.01.17"]
[WhiteClock "0:00:55"]
[BlackClock "0:01:59"]

1. e4 {[%clk 0:03:00]}  e6 {[%clk 0:03:00]} 2. d4 {[%clk 0:02:59]}  d5 {[%clk 0:02:57]} 3. Nd2 {[%clk 0:02:59]}  c5 {[%clk 0:02:56]} 4. Ngf3 {[%clk 0:02:57]}  Nc6 {[%clk 0:02:53]} 5. exd5 {[%clk 0:02:39]}  exd5 {[%clk 0:02:54]} 6. Bb5 {[%clk 0:02:38]}  Qe7+ {[%clk 0:02:51]} 7. Qe2 {[%clk 0:02:37]}  Qxe2+ {[%clk 0:02:51]} 8. Kxe2 {[%clk 0:02:35]}  a6 {[%clk 0:02:51]} 9. Bxc6+ {[%clk 0:02:33]}  bxc6 {[%clk 0:02:52]} 10. dxc5 {[%clk 0:02:32]}  Bxc5 {[%clk 0:02:53]} 11. Nb3 {[%clk 0:02:32]}  Bd6 {[%clk 0:02:53]} 12. Be3 {[%clk 0:02:30]}  a5 {[%clk 0:02:52]} 13. Bc5 {[%clk 0:02:26]}  Kd7 {[%clk 0:02:51]} 14. a4 {[%clk 0:02:23]}  Ba6+ {[%clk 0:02:50]} 15. Kd1 {[%clk 0:02:20]}  Nf6 {[%clk 0:02:48]} 16. Nfd4 {[%clk 0:02:08]}  Ne4 {[%clk 0:02:45]} 17. Bxd6 {[%clk 0:02:07]}  Nxf2+ {[%clk 0:02:40]} 18. Kd2 {[%clk 0:01:53]}  Kxd6 {[%clk 0:02:38]} 19. Rhe1 {[%clk 0:01:41]}  Ne4+ {[%clk 0:02:30]} 20. Kc1 {[%clk 0:01:35]}  Bc4 {[%clk 0:02:25]} 21. Nd2 {[%clk 0:01:25]}  Nxd2 {[%clk 0:02:23]} 22. Kxd2 {[%clk 0:01:26]}  g6 {[%clk 0:02:21]} 23. Ra3 {[%clk 0:01:01]}  Rab8 {[%clk 0:02:20]} 24. Rf3 {[%clk 0:00:59]}  Rhf8 {[%clk 0:02:01]} 25. Rf6+ {[%clk 0:00:56]}  Kc5 {[%clk 0:02:01]} 26. Rxc6+ {[%clk 0:00:56]}  Kb4 {[%clk 0:02:00]} 27. c3+ {[%clk 0:00:54]}  Kxa4 {[%clk 0:02:00]} 28. Ra1+ {[%clk 0:00:54]}  Ba2 {[%clk 0:01:59]} 29. Rxa2# {[%clk 0:00:55]} 1-0


[Site "https://www.chess.com"]

[Event "Titled Tuesday Blitz January 17 Late 2023"]
[White "Vaglio Munoz, Jaime"]
[Black "Liang, Justin"]
[WhiteFideId "6500145"]
[BlackFideId "2099942"]
[WhiteElo "2174"]
[BlackElo "2052"]
[Result "0-1"]
[Round "07"]
[TimeControl "180+2"]
[Date "2023.01.17"]
[WhiteClock "0:00:03"]
[BlackClock "0:00:10"]

1. d4 {[%clk 0:03:00]}  Nf6 {[%clk 0:02:53]} 2. c4 {[%clk 0:03:00]}  e6 {[%clk 0:02:53]} 3. a3 {[%clk 0:02:59]}  b6 {[%clk 0:02:48]} 4. Nf3 {[%clk 0:02:57]}  Bb7 {[%clk 0:02:36]} 5. g3 {[%clk 0:02:57]}  g6 {[%clk 0:02:37]} 6. Bg2 {[%clk 0:02:57]}  Bg7 {[%clk 0:02:37]} 7. O-O {[%clk 0:02:57]}  O-O {[%clk 0:02:38]} 8. Ra2 {[%clk 0:02:56]}  d6 {[%clk 0:02:13]} 9. b4 {[%clk 0:02:55]}  a5 {[%clk 0:02:11]} 10. b5 {[%clk 0:02:54]}  Nbd7 {[%clk 0:02:05]} 11. Nc3 {[%clk 0:02:53]}  Ne4 {[%clk 0:02:04]} 12. Nxe4 {[%clk 0:02:51]}  Bxe4 {[%clk 0:02:05]} 13. Rd2 {[%clk 0:02:48]}  Qe7 {[%clk 0:02:02]} 14. a4 {[%clk 0:02:47]}  f5 {[%clk 0:02:00]} 15. Ba3 {[%clk 0:02:46]}  Rad8 {[%clk 0:01:58]} 16. h4 {[%clk 0:02:46]}  h6 {[%clk 0:01:56]} 17. Ne1 {[%clk 0:02:41]}  Bxg2 {[%clk 0:01:56]} 18. Kxg2 {[%clk 0:02:42]}  e5 {[%clk 0:01:56]} 19. e3 {[%clk 0:02:40]}  Qe6 {[%clk 0:01:50]} 20. c5 {[%clk 0:02:30]}  Qd5+ {[%clk 0:01:25]} 21. Kg1 {[%clk 0:02:28]}  exd4 {[%clk 0:01:22]} 22. cxd6 {[%clk 0:02:23]}  cxd6 {[%clk 0:01:14]} 23. Nf3 {[%clk 0:02:22]}  Nc5 {[%clk 0:01:04]} 24. Nxd4 {[%clk 0:02:16]}  Ne4 {[%clk 0:01:04]} 25. Rc2 {[%clk 0:02:13]}  Rc8 {[%clk 0:00:47]} 26. Nc6 {[%clk 0:02:10]}  Qe6 {[%clk 0:00:36]} 27. Kg2 {[%clk 0:01:23]}  g5 {[%clk 0:00:18]} 28. f3 {[%clk 0:01:22]}  Nc3 {[%clk 0:00:15]} 29. Qd3 {[%clk 0:01:20]}  gxh4 {[%clk 0:00:04]} 30. Rxc3 {[%clk 0:01:19]}  Bxc3 {[%clk 0:00:04]} 31. Qxc3 {[%clk 0:01:20]}  Qg6 {[%clk 0:00:05]} 32. Ne7+ {[%clk 0:01:10]}  Kf7 {[%clk 0:00:05]} 33. Nxg6 {[%clk 0:01:08]}  Rxc3 {[%clk 0:00:06]} 34. Nxf8 {[%clk 0:01:08]}  Rxa3 {[%clk 0:00:06]} 35. Nd7 {[%clk 0:01:07]}  hxg3 {[%clk 0:00:06]} 36. Nxb6 {[%clk 0:01:06]}  Rxe3 {[%clk 0:00:06]} 37. Kxg3 {[%clk 0:01:06]}  Ke6 {[%clk 0:00:06]} 38. Kf4 {[%clk 0:01:06]}  Rb3 {[%clk 0:00:06]} 39. Nc4 {[%clk 0:01:04]}  Rb4 {[%clk 0:00:07]} 40. Re1+ {[%clk 0:01:02]}  Kf6 {[%clk 0:00:05]} 41. Rc1 {[%clk 0:00:59]}  d5 {[%clk 0:00:06]} 42. b6 {[%clk 0:00:58]}  dxc4 {[%clk 0:00:06]} 43. b7 {[%clk 0:00:57]}  Rxb7 {[%clk 0:00:05]} 44. Rxc4 {[%clk 0:00:57]}  Rb4 {[%clk 0:00:06]} 45. Rxb4 {[%clk 0:00:57]}  axb4 {[%clk 0:00:07]} 46. a5 {[%clk 0:00:57]}  b3 {[%clk 0:00:07]} 47. a6 {[%clk 0:00:57]}  b2 {[%clk 0:00:08]} 48. a7 {[%clk 0:00:57]}  b1=Q {[%clk 0:00:08]} 49. a8=Q {[%clk 0:00:56]}  Qb4+ {[%clk 0:00:05]} 50. Kg3 {[%clk 0:00:56]}  Qe1+ {[%clk 0:00:04]} 51. Kg2 {[%clk 0:00:56]}  Qe2+ {[%clk 0:00:04]} 52. Kg3 {[%clk 0:00:56]}  Qe1+ {[%clk 0:00:04]} 53. Kg2 {[%clk 0:00:56]}  Qe6 {[%clk 0:00:04]} 54. Qh8+ {[%clk 0:00:55]}  Kg6 {[%clk 0:00:05]} 55. Qd8 {[%clk 0:00:45]}  f4 {[%clk 0:00:04]} 56. Qd3+ {[%clk 0:00:44]}  Kh5 {[%clk 0:00:04]} 57. Kh2 {[%clk 0:00:35]}  Qa2+ {[%clk 0:00:03]} 58. Kh3 {[%clk 0:00:34]}  Qe6+ {[%clk 0:00:04]} 59. Kh2 {[%clk 0:00:33]}  Kg5 {[%clk 0:00:04]} 60. Qd8+ {[%clk 0:00:31]}  Kg6 {[%clk 0:00:05]} 61. Qd3+ {[%clk 0:00:30]}  Kg7 {[%clk 0:00:05]} 62. Qd4+ {[%clk 0:00:30]}  Qf6 {[%clk 0:00:05]} 63. Qd7+ {[%clk 0:00:29]}  Kg6 {[%clk 0:00:06]} 64. Qd3+ {[%clk 0:00:29]}  Kh5 {[%clk 0:00:06]} 65. Qd7 {[%clk 0:00:27]}  Qh4+ {[%clk 0:00:06]} 66. Kg2 {[%clk 0:00:25]}  Qg3+ {[%clk 0:00:06]} 67. Kh1 {[%clk 0:00:25]}  Qxf3+ {[%clk 0:00:07]} 68. Kh2 {[%clk 0:00:25]}  Qf2+ {[%clk 0:00:07]} 69. Kh1 {[%clk 0:00:25]}  Qg3 {[%clk 0:00:07]} 70. Qf5+ {[%clk 0:00:21]}  Qg5 {[%clk 0:00:04]} 71. Qf7+ {[%clk 0:00:17]}  Kh4 {[%clk 0:00:04]} 72. Qc4 {[%clk 0:00:15]}  Qg3 {[%clk 0:00:02]} 73. Qf7 {[%clk 0:00:11]}  Qe1+ {[%clk 0:00:02]} 74. Kh2 {[%clk 0:00:10]}  Qe2+ {[%clk 0:00:02]} 75. Kh1 {[%clk 0:00:10]}  Qe5 {[%clk 0:00:02]} 76. Qg6 {[%clk 0:00:06]}  h5 {[%clk 0:00:02]} 77. Qg2 {[%clk 0:00:04]}  Qe1+ {[%clk 0:00:02]} 78. Kh2 {[%clk 0:00:04]}  Qg3+ {[%clk 0:00:03]} 79. Qxg3+ {[%clk 0:00:01]}  fxg3+ {[%clk 0:00:04]} 80. Kg2 {[%clk 0:00:02]}  Kg4 {[%clk 0:00:05]} 81. Kh1 {[%clk 0:00:02]}  h4 {[%clk 0:00:05]} 82. Kg2 {[%clk 0:00:03]}  h3+ {[%clk 0:00:06]} 83. Kh1 {[%clk 0:00:03]}  Kf3 {[%clk 0:00:07]} 84. Kg1 {[%clk 0:00:04]}  g2 {[%clk 0:00:07]} 85. Kh2 {[%clk 0:00:01]}  Kf2 {[%clk 0:00:08]} 86. Kxh3 {[%clk 0:00:02]}  g1=Q {[%clk 0:00:08]} 87. Kh4 {[%clk 0:00:02]}  Qg6 {[%clk 0:00:09]} 88. Kh3 {[%clk 0:00:03]}  Qg3# {[%clk 0:00:10]} 0-1


[Site "https://www.chess.com"]

[Event "Titled Tuesday Blitz January 17 Late 2023"]
[White "Holt, Conrad"]
[Black "Souleidis, Georgios"]
[WhiteFideId "2034387"]
[BlackFideId "4206827"]
[WhiteElo "2540"]
[BlackElo "2419"]
[Result "1-0"]
[Round "07"]
[TimeControl "180+2"]
[Date "2023.01.17"]
[WhiteClock "0:00:04"]
[BlackClock "0:00:01"]

1. d4 {[%clk 0:02:51]}  d5 {[%clk 0:02:58]} 2. c4 {[%clk 0:02:51]}  e6 {[%clk 0:02:58]} 3. Nc3 {[%clk 0:02:51]}  c5 {[%clk 0:02:58]} 4. cxd5 {[%clk 0:02:50]}  cxd4 {[%clk 0:02:58]} 5. Qa4+ {[%clk 0:02:48]}  Bd7 {[%clk 0:02:58]} 6. Qxd4 {[%clk 0:02:49]}  exd5 {[%clk 0:02:57]} 7. Qxd5 {[%clk 0:02:49]}  Nf6 {[%clk 0:02:57]} 8. Qb3 {[%clk 0:02:48]}  Na6 {[%clk 0:02:57]} 9. e4 {[%clk 0:02:44]}  Nc5 {[%clk 0:02:48]} 10. Qc2 {[%clk 0:02:42]}  Rc8 {[%clk 0:02:32]} 11. e5 {[%clk 0:02:38]}  Ng4 {[%clk 0:02:03]} 12. Nf3 {[%clk 0:02:36]}  Qe7 {[%clk 0:01:50]} 13. Bf4 {[%clk 0:02:15]}  f6 {[%clk 0:01:16]} 14. Be2 {[%clk 0:02:03]}  Nxe5 {[%clk 0:01:12]} 15. O-O {[%clk 0:02:01]}  Qe6 {[%clk 0:01:03]} 16. Rfe1 {[%clk 0:01:57]}  Bd6 {[%clk 0:01:01]} 17. Nd4 {[%clk 0:01:37]}  Qf7 {[%clk 0:00:49]} 18. Nf5 {[%clk 0:01:35]}  Bxf5 {[%clk 0:00:47]} 19. Qxf5 {[%clk 0:01:35]}  O-O {[%clk 0:00:44]} 20. Rad1 {[%clk 0:01:33]}  Rcd8 {[%clk 0:00:36]} 21. Be3 {[%clk 0:01:24]}  b6 {[%clk 0:00:28]} 22. Rd5 {[%clk 0:01:19]}  Be7 {[%clk 0:00:18]} 23. Red1 {[%clk 0:01:13]}  g6 {[%clk 0:00:11]} 24. Qh3 {[%clk 0:01:10]}  Rxd5 {[%clk 0:00:10]} 25. Nxd5 {[%clk 0:01:10]}  Rd8 {[%clk 0:00:08]} 26. Nc3 {[%clk 0:00:46]}  Rxd1+ {[%clk 0:00:08]} 27. Bxd1 {[%clk 0:00:46]}  Qe6 {[%clk 0:00:06]} 28. Qxe6+ {[%clk 0:00:45]}  Nxe6 {[%clk 0:00:06]} 29. Bb3 {[%clk 0:00:46]}  Kf7 {[%clk 0:00:07]} 30. Nb5 {[%clk 0:00:46]}  Nc6 {[%clk 0:00:02]} 31. Nc7 {[%clk 0:00:40]}  Nd8 {[%clk 0:00:02]} 32. Bf4 {[%clk 0:00:22]}  Bc5 {[%clk 0:00:02]} 33. Bg3 {[%clk 0:00:15]}  Ke7 {[%clk 0:00:02]} 34. Nd5+ {[%clk 0:00:15]}  Kf7 {[%clk 0:00:03]} 35. Bc4 {[%clk 0:00:14]}  a5 {[%clk 0:00:03]} 36. Kf1 {[%clk 0:00:12]}  g5 {[%clk 0:00:04]} 37. Nc7 {[%clk 0:00:10]}  h6 {[%clk 0:00:03]} 38. Ke2 {[%clk 0:00:09]}  Ke7 {[%clk 0:00:04]} 39. Nd5+ {[%clk 0:00:10]}  Kf7 {[%clk 0:00:04]} 40. f4 {[%clk 0:00:10]}  Kg6 {[%clk 0:00:03]} 41. Kd3 {[%clk 0:00:05]}  Nd4 {[%clk 0:00:03]} 42. fxg5 {[%clk 0:00:04]}  hxg5 {[%clk 0:00:04]} 43. a3 {[%clk 0:00:03]}  Nf5 {[%clk 0:00:04]} 44. b4 {[%clk 0:00:02]}  axb4 {[%clk 0:00:04]} 45. axb4 {[%clk 0:00:03]}  Bg1 {[%clk 0:00:04]} 46. Bc7 {[%clk 0:00:04]}  Nc6 {[%clk 0:00:04]} 47. Kc3 {[%clk 0:00:02]}  Nfe7 {[%clk 0:00:02]} 48. Nxb6 {[%clk 0:00:02]}  Bxb6 {[%clk 0:00:01]} 49. Bxb6 {[%clk 0:00:03]}  Nc8 {[%clk 0:00:01]} 50. Bc5 {[%clk 0:00:04]} 1-0


[Site "https://www.chess.com"]

[Event "Titled Tuesday Blitz January 17 Late 2023"]
[White "Kobalia, Mikhail"]
[Black "Winterberg, Lukas"]
[WhiteFideId "4119150"]
[BlackFideId "24622702"]
[WhiteElo "2578"]
[BlackElo "2402"]
[Result "1-0"]
[Round "07"]
[TimeControl "180+2"]
[Date "2023.01.17"]
[WhiteClock "0:02:31"]
[BlackClock "0:02:20"]

1. e4 {[%clk 0:02:56]}  e6 {[%clk 0:03:00]} 2. d3 {[%clk 0:02:56]}  d5 {[%clk 0:03:01]} 3. Nd2 {[%clk 0:02:55]}  Nc6 {[%clk 0:02:59]} 4. Ngf3 {[%clk 0:02:54]}  Nf6 {[%clk 0:02:59]} 5. e5 {[%clk 0:02:54]}  Nd7 {[%clk 0:02:59]} 6. d4 {[%clk 0:02:54]}  f6 {[%clk 0:02:59]} 7. Bb5 {[%clk 0:02:54]}  fxe5 {[%clk 0:02:59]} 8. Bxc6 {[%clk 0:02:53]}  bxc6 {[%clk 0:02:59]} 9. dxe5 {[%clk 0:02:54]}  Bc5 {[%clk 0:02:55]} 10. Nb3 {[%clk 0:02:50]}  O-O {[%clk 0:02:47]} 11. Nxc5 {[%clk 0:02:48]}  Nxc5 {[%clk 0:02:48]} 12. Be3 {[%clk 0:02:47]}  Ne4 {[%clk 0:02:47]} 13. Nd2 {[%clk 0:02:47]}  Nxd2 {[%clk 0:02:44]} 14. Qxd2 {[%clk 0:02:47]}  Ba6 {[%clk 0:02:42]} 15. O-O-O {[%clk 0:02:46]}  Rb8 {[%clk 0:02:42]} 16. b3 {[%clk 0:02:45]}  Qe7 {[%clk 0:02:40]} 17. Qa5 {[%clk 0:02:44]}  Be2 {[%clk 0:02:36]} 18. Rd2 {[%clk 0:02:41]}  Bh5 {[%clk 0:02:34]} 19. Bc5 {[%clk 0:02:41]}  Qg5 {[%clk 0:02:26]} 20. Bxf8 {[%clk 0:02:40]}  Qxg2 {[%clk 0:02:26]} 21. Re1 {[%clk 0:02:35]}  Rxf8 {[%clk 0:02:26]} 22. Qxa7 {[%clk 0:02:33]}  Rxf2 {[%clk 0:02:20]} 23. Qxf2 {[%clk 0:02:31]} 1-0


[Site "https://www.chess.com"]

[Event "Titled Tuesday Blitz January 17 Late 2023"]
[White "Djordjevic, Vuk"]
[Black "Rodriguez Fontecha, Marcos"]
[WhiteFideId "902098"]
[BlackFideId "2256576"]
[WhiteElo "2375"]
[BlackElo "2309"]
[Result "1-0"]
[Round "07"]
[TimeControl "180+2"]
[Date "2023.01.17"]
[WhiteClock "0:00:24"]
[BlackClock "0:00:15"]

1. d4 {[%clk 0:03:00]}  d5 {[%clk 0:03:00]} 2. c4 {[%clk 0:03:00]}  Nc6 {[%clk 0:03:01]} 3. Nc3 {[%clk 0:02:57]}  Nf6 {[%clk 0:03:00]} 4. Bg5 {[%clk 0:02:54]}  dxc4 {[%clk 0:02:51]} 5. Bxf6 {[%clk 0:02:52]}  exf6 {[%clk 0:02:46]} 6. e3 {[%clk 0:02:52]}  Bb4 {[%clk 0:02:42]} 7. Bxc4 {[%clk 0:02:52]}  O-O {[%clk 0:02:42]} 8. Ne2 {[%clk 0:02:44]}  Be6 {[%clk 0:02:40]} 9. d5 {[%clk 0:02:41]}  Ne5 {[%clk 0:02:40]} 10. dxe6 {[%clk 0:02:42]}  Qxd1+ {[%clk 0:02:29]} 11. Kxd1 {[%clk 0:02:39]}  Nxc4 {[%clk 0:02:28]} 12. exf7+ {[%clk 0:02:35]}  Rxf7 {[%clk 0:02:19]} 13. Kc2 {[%clk 0:02:36]}  Rd7 {[%clk 0:02:12]} 14. Rad1 {[%clk 0:02:34]}  Rad8 {[%clk 0:02:12]} 15. Rxd7 {[%clk 0:02:23]}  Rxd7 {[%clk 0:02:13]} 16. Nb1 {[%clk 0:02:22]}  Ne5 {[%clk 0:01:48]} 17. h3 {[%clk 0:02:01]}  Kf7 {[%clk 0:01:46]} 18. a3 {[%clk 0:02:00]}  Ba5 {[%clk 0:01:46]} 19. Nd4 {[%clk 0:01:56]}  c5 {[%clk 0:01:45]} 20. Nb3 {[%clk 0:01:53]}  Bb6 {[%clk 0:01:42]} 21. Nc3 {[%clk 0:01:52]}  Nd3 {[%clk 0:01:11]} 22. Rd1 {[%clk 0:01:51]}  c4 {[%clk 0:01:12]} 23. Nc1 {[%clk 0:01:48]}  Ne5 {[%clk 0:01:06]} 24. Rxd7+ {[%clk 0:01:23]}  Nxd7 {[%clk 0:01:07]} 25. Nd5 {[%clk 0:00:57]}  Bd8 {[%clk 0:01:06]} 26. Kc3 {[%clk 0:00:47]}  b5 {[%clk 0:01:07]} 27. a4 {[%clk 0:00:45]}  a6 {[%clk 0:01:06]} 28. axb5 {[%clk 0:00:44]}  axb5 {[%clk 0:01:07]} 29. Kb4 {[%clk 0:00:45]}  Ne5 {[%clk 0:01:01]} 30. Kxb5 {[%clk 0:00:44]}  Nd3 {[%clk 0:00:56]} 31. Nxd3 {[%clk 0:00:42]}  cxd3 {[%clk 0:00:57]} 32. Kc4 {[%clk 0:00:42]}  d2 {[%clk 0:00:57]} 33. Nc3 {[%clk 0:00:43]}  Ba5 {[%clk 0:00:33]} 34. b4 {[%clk 0:00:23]}  Bc7 {[%clk 0:00:32]} 35. Kd3 {[%clk 0:00:23]}  Bd6 {[%clk 0:00:32]} 36. b5 {[%clk 0:00:23]}  Ke6 {[%clk 0:00:18]} 37. Kxd2 {[%clk 0:00:23]}  Bb4 {[%clk 0:00:17]} 38. Kd3 {[%clk 0:00:24]}  Kd6 {[%clk 0:00:17]} 39. Kc4 {[%clk 0:00:24]}  Ba5 {[%clk 0:00:16]} 40. Ne4+ {[%clk 0:00:24]}  Ke5 {[%clk 0:00:16]} 41. Nc5 {[%clk 0:00:23]}  Be1 {[%clk 0:00:15]} 42. Nd3+ {[%clk 0:00:24]} 1-0


[Site "https://www.chess.com"]

[Event "Titled Tuesday Blitz January 17 Late 2023"]
[White "Saya, Ethan"]
[Black "Kavutskiy, Konstantin"]
[WhiteFideId "26095181"]
[BlackFideId "2026384"]
[WhiteElo "2181"]
[BlackElo "2414"]
[Result "0-1"]
[Round "07"]
[TimeControl "180+2"]
[Date "2023.01.17"]
[WhiteClock "0:01:24"]
[BlackClock "0:01:44"]

1. e4 {[%clk 0:03:00]}  Nc6 {[%clk 0:02:59]} 2. d4 {[%clk 0:03:00]}  d6 {[%clk 0:02:59]} 3. Nf3 {[%clk 0:02:58]}  Nf6 {[%clk 0:02:58]} 4. d5 {[%clk 0:02:58]}  Nb8 {[%clk 0:02:58]} 5. Nc3 {[%clk 0:02:56]}  g6 {[%clk 0:02:58]} 6. Be3 {[%clk 0:02:55]}  Bg7 {[%clk 0:02:59]} 7. Bd4 {[%clk 0:02:55]}  O-O {[%clk 0:02:57]} 8. Qd2 {[%clk 0:02:55]}  c5 {[%clk 0:02:56]} 9. dxc6 {[%clk 0:02:55]}  Nxc6 {[%clk 0:02:54]} 10. Be3 {[%clk 0:02:55]}  Ng4 {[%clk 0:02:51]} 11. Bg5 {[%clk 0:02:51]}  Qb6 {[%clk 0:02:44]} 12. Rb1 {[%clk 0:02:46]}  Bxc3 {[%clk 0:02:39]} 13. Qxc3 {[%clk 0:02:36]}  Qxf2+ {[%clk 0:02:37]} 14. Kd1 {[%clk 0:02:36]}  f6 {[%clk 0:02:25]} 15. Bd2 {[%clk 0:02:34]}  Qb6 {[%clk 0:02:20]} 16. Ke1 {[%clk 0:02:26]}  Be6 {[%clk 0:02:18]} 17. Bc4 {[%clk 0:02:24]}  Bxc4 {[%clk 0:02:15]} 18. Qxc4+ {[%clk 0:02:25]}  Kg7 {[%clk 0:02:15]} 19. Rf1 {[%clk 0:02:20]}  Rac8 {[%clk 0:02:11]} 20. Qe6 {[%clk 0:02:19]}  Nge5 {[%clk 0:02:03]} 21. Nxe5 {[%clk 0:02:17]}  fxe5 {[%clk 0:02:02]} 22. Rf5 {[%clk 0:01:31]}  Qg1+ {[%clk 0:01:47]} 23. Ke2 {[%clk 0:01:29]}  Nd4+ {[%clk 0:01:47]} 24. Kd3 {[%clk 0:01:27]}  Nxe6 {[%clk 0:01:44]} 25. Rxg1 {[%clk 0:01:25]}  gxf5 {[%clk 0:01:44]} 26. exf5 {[%clk 0:01:24]}  Rxf5 {[%clk 0:01:44]} 0-1


[Site "https://www.chess.com"]

[Event "Titled Tuesday Blitz January 17 Late 2023"]
[White "Andrews, Todd"]
[Black "Nefedov, Sergey"]
[WhiteFideId "2012456"]
[BlackFideId "24113417"]
[WhiteElo "2220"]
[BlackElo "2300"]
[Result "1-0"]
[Round "07"]
[TimeControl "180+2"]
[Date "2023.01.17"]
[WhiteClock "0:00:13"]
[BlackClock "0:00:02"]

1. e4 {[%clk 0:03:00]}  d5 {[%clk 0:02:58]} 2. exd5 {[%clk 0:03:00]}  Qxd5 {[%clk 0:02:58]} 3. Nc3 {[%clk 0:03:00]}  Qd8 {[%clk 0:02:58]} 4. d4 {[%clk 0:02:58]}  Nf6 {[%clk 0:02:58]} 5. h3 {[%clk 0:02:57]}  Bf5 {[%clk 0:02:54]} 6. Nf3 {[%clk 0:02:56]}  e6 {[%clk 0:02:54]} 7. Bc4 {[%clk 0:02:53]}  c6 {[%clk 0:02:54]} 8. Qe2 {[%clk 0:02:50]}  Be7 {[%clk 0:02:53]} 9. Bb3 {[%clk 0:02:43]}  O-O {[%clk 0:02:50]} 10. g4 {[%clk 0:02:43]}  Bg6 {[%clk 0:02:48]} 11. Bd2 {[%clk 0:02:40]}  b5 {[%clk 0:02:41]} 12. O-O-O {[%clk 0:02:39]}  a5 {[%clk 0:02:38]} 13. a4 {[%clk 0:02:33]}  b4 {[%clk 0:02:35]} 14. Nb1 {[%clk 0:02:30]}  Be4 {[%clk 0:02:33]} 15. g5 {[%clk 0:02:23]}  Bxf3 {[%clk 0:02:30]} 16. Qxf3 {[%clk 0:02:24]}  Nd5 {[%clk 0:02:30]} 17. h4 {[%clk 0:02:22]}  Nd7 {[%clk 0:02:29]} 18. Rdg1 {[%clk 0:02:19]}  Rc8 {[%clk 0:02:26]} 19. h5 {[%clk 0:02:05]}  c5 {[%clk 0:02:21]} 20. Bxd5 {[%clk 0:01:57]}  exd5 {[%clk 0:02:21]} 21. g6 {[%clk 0:01:57]}  Nf6 {[%clk 0:01:29]} 22. h6 {[%clk 0:01:41]}  fxg6 {[%clk 0:01:26]} 23. hxg7 {[%clk 0:01:41]}  Rf7 {[%clk 0:01:25]} 24. Rxg6 {[%clk 0:01:20]}  hxg6 {[%clk 0:01:20]} 25. Rh8+ {[%clk 0:01:04]}  Kxg7 {[%clk 0:01:20]} 26. Rxd8 {[%clk 0:01:05]}  Rxd8 {[%clk 0:01:17]} 27. dxc5 {[%clk 0:01:00]}  Ne4 {[%clk 0:01:14]} 28. Bh6+ {[%clk 0:00:49]}  Kg8 {[%clk 0:01:05]} 29. Qg4 {[%clk 0:00:47]}  Kh7 {[%clk 0:00:45]} 30. Be3 {[%clk 0:00:46]}  Kg7 {[%clk 0:00:33]} 31. c6 {[%clk 0:00:37]}  Bf6 {[%clk 0:00:15]} 32. Nd2 {[%clk 0:00:26]}  Nxd2 {[%clk 0:00:09]} 33. Kxd2 {[%clk 0:00:27]}  Bxb2 {[%clk 0:00:06]} 34. Qh4 {[%clk 0:00:23]}  Bc3+ {[%clk 0:00:02]} 35. Kd3 {[%clk 0:00:22]}  Rd6 {[%clk 0:00:02]} 36. Qh6+ {[%clk 0:00:21]}  Kg8 {[%clk 0:00:02]} 37. c7 {[%clk 0:00:14]}  Rxc7 {[%clk 0:00:02]} 38. Bf4 {[%clk 0:00:13]} 1-0


[Site "https://www.chess.com"]

[Event "Titled Tuesday Blitz January 17 Late 2023"]
[White "Fishbein, Mitch"]
[Black "Cori T., Deysi"]
[WhiteFideId "30922917"]
[BlackFideId "3801934"]
[WhiteElo "2120"]
[BlackElo "2362"]
[Result "0-1"]
[Round "07"]
[TimeControl "180+2"]
[Date "2023.01.17"]
[WhiteClock "0:01:39"]
[BlackClock "0:02:27"]

1. d4 {[%clk 0:02:59]}  e6 {[%clk 0:02:59]} 2. Nf3 {[%clk 0:02:55]}  b6 {[%clk 0:02:58]} 3. Bf4 {[%clk 0:02:54]}  Bb7 {[%clk 0:02:58]} 4. e3 {[%clk 0:02:54]}  Ne7 {[%clk 0:02:56]} 5. h3 {[%clk 0:02:52]}  h6 {[%clk 0:02:55]} 6. Be2 {[%clk 0:02:52]}  g5 {[%clk 0:02:56]} 7. Bg3 {[%clk 0:02:47]}  Bg7 {[%clk 0:02:56]} 8. Nbd2 {[%clk 0:02:45]}  d6 {[%clk 0:02:54]} 9. c3 {[%clk 0:02:45]}  Nd7 {[%clk 0:02:52]} 10. e4 {[%clk 0:02:43]}  d5 {[%clk 0:02:46]} 11. e5 {[%clk 0:02:40]}  c5 {[%clk 0:02:47]} 12. h4 {[%clk 0:02:26]}  g4 {[%clk 0:02:46]} 13. Nh2 {[%clk 0:02:26]}  h5 {[%clk 0:02:47]} 14. f3 {[%clk 0:02:24]}  Nf5 {[%clk 0:02:47]} 15. Nhf1 {[%clk 0:02:08]}  cxd4 {[%clk 0:02:43]} 16. fxg4 {[%clk 0:02:07]}  hxg4 {[%clk 0:02:33]} 17. cxd4 {[%clk 0:02:02]}  Nxd4 {[%clk 0:02:29]} 18. Bxg4 {[%clk 0:01:53]}  Nxe5 {[%clk 0:02:29]} 19. h5 {[%clk 0:01:39]}  Nd3# {[%clk 0:02:27]} 0-1


[Site "https://www.chess.com"]